[Event "FIDE Women World Blitz 2021"]
[Site "Warsaw"]
[Date "2021.12.30"]
[Round "16.19"]
[White "Balajayeva, Khanim"]
[Black "Muzychuk, Mariya"]
[Result "0-1"]
[ECO "B22"]
[WhiteElo "2369"]
[BlackElo "2536"]
[Annotator "ChessBase"]
[PlyCount "100"]
[EventDate "2021.12.29"]
[EventType "swiss"]
[EventCountry "POL"]
[Tiebreak "Cut1 Buchholz"]
[SourceTitle "playchess.com"]
[Source "ChessBase"]
[SourceQuality "1"]
[TimeControl "180+2"]

1. e4 {[%emt 0:00:01]} c5 {[%emt 0:00:00]} 2. c3 {[%emt 0:00:00]} Nf6 {[%emt 0:
00:02]} 3. e5 {[%emt 0:00:01]} Nd5 {[%emt 0:00:01]} 4. Nf3 {[%emt 0:00:01]} Nc6
{[%emt 0:00:02]} 5. d4 {[%emt 0:00:00]} cxd4 {[%emt 0:00:01]} 6. Bc4 {[%emt 0:
00:01]} Nb6 {[%emt 0:00:04]} 7. Bb3 d5 {[%emt 0:00:03]} 8. exd6 {[%emt 0:00:01]
} Qxd6 {[%emt 0:00:01]} 9. O-O {[%emt 0:00:03]} Be6 {[%emt 0:00:02]} 10. Na3 {
[%emt 0:00:09]} dxc3 {[%emt 0:00:17]} 11. Qe2 {[%emt 0:00:02]} Bxb3 {[%emt 0:
00:14]} 12. Nb5 {[%emt 0:00:00]} Qb8 {[%emt 0:00:08]} 13. axb3 {[%emt 0:00:02]}
g6 {[%emt 0:00:08]} 14. Be3 {[%emt 0:00:11]} Nc8 {[%emt 0:00:06]} 15. Ra4 {
[%emt 0:00:03]} Bg7 {[%emt 0:00:14]} 16. Bf4 {[%emt 0:00:11]} e5 {[%emt 0:00:
01]} 17. Nxe5 {[%emt 0:00:13]} Nxe5 {[%emt 0:00:13]} 18. Bxe5 {[%emt 0:00:10]}
Bxe5 {[%emt 0:00:07]} 19. Re4 {[%emt 0:00:01]} O-O {[%emt 0:00:05]} 20. Rxe5 {
[%emt 0:00:01]} cxb2 {[%emt 0:00:20]} 21. Re3 {[%emt 0:00:32]} Nd6 {[%emt 0:00:
27]} 22. Nd4 {[%emt 0:00:03]} Qd8 {[%emt 0:00:15]} 23. Qxb2 {[%emt 0:00:05]}
Qf6 {[%emt 0:00:00]} 24. Qa1 {[%emt 0:00:37]} Rfd8 {[%emt 0:00:09]} 25. Rf3 {
[%emt 0:00:11]} Qg7 {[%emt 0:00:08]} 26. Qa4 {[%emt 0:00:00]} a6 {[%emt 0:00:
21]} 27. Ne2 {[%emt 0:00:03]} Rac8 {[%emt 0:00:02]} 28. h3 {[%emt 0:00:05]} Nf5
{[%emt 0:00:01]} 29. Qb4 {[%emt 0:00:05]} Rd7 {[%emt 0:00:04]} 30. Ng3 {
[%emt 0:00:22]} Nd4 {[%emt 0:00:03]} 31. Rf4 {[%emt 0:00:11]} Rcd8 {[%emt 0:00:
00]} 32. Kh2 {[%emt 0:00:04]} h5 {[%emt 0:00:02]} 33. Rc1 {[%emt 0:00:14]} Qh6
{[%emt 0:00:07]} 34. Rxd4 {[%emt 0:00:04]} Rxd4 {[%emt 0:00:00]} 35. Rc4 {
[%emt 0:00:01]} Rxc4 {[%emt 0:00:02]} 36. bxc4 {[%emt 0:00:01]} Qf4 {[%emt 0:
00:05]} 37. Qe7 {[%emt 0:00:02]} Rf8 {[%emt 0:00:04]} 38. Kg1 {[%emt 0:00:01]}
Qxc4 {[%emt 0:00:02]} 39. Ne4 {[%emt 0:00:01]} Qc1+ {[%emt 0:00:02]} 40. Kh2 {
[%emt 0:00:01]} Qf4+ 41. g3 Qf3 {[%emt 0:00:04]} 42. Kg1 {[%emt 0:00:07]} Kg7 {
[%emt 0:00:05]} 43. Qe5+ {[%emt 0:00:04]} f6 {[%emt 0:00:02]} 44. Qe6 {[%emt 0:
00:03]} Qf5 {[%emt 0:00:04]} 45. Qc4 {[%emt 0:00:02]} Rd8 {[%emt 0:00:03]} 46.
Qb4 {[%emt 0:00:04]} Qd7 {[%emt 0:00:02]} 47. Nc5 {[%emt 0:00:04]} Qe7 {
[%emt 0:00:01]} 48. Qb6 {[%emt 0:00:02]} Rd1+ {[%emt 0:00:03]} 49. Kg2 {
[%emt 0:00:02]} Re1 {[%emt 0:00:02]} 50. Qb4 {[%emt 0:00:12]} Re5 {[%emt 0:00:
02]} 0-1

[Event "FIDE Women World Blitz 2021"]
[Site "Warsaw"]
[Date "2021.12.30"]
[Round "16.20"]
[White "Semenova, Elena"]
[Black "Muetsch, Annmarie"]
[Result "0-1"]
[ECO "B07"]
[WhiteElo "2233"]
[BlackElo "2279"]
[Annotator "NA"]
[PlyCount "115"]
[EventDate "2021.12.29"]
[EventType "swiss"]
[EventCountry "POL"]
[Tiebreak "Cut1 Buchholz"]
[SourceTitle "playchess.com"]
[Source "ChessBase"]
[SourceQuality "1"]
[TimeControl "180+2"]

1. e4 {[%emt 0:00:00]} d6 {[%emt 0:00:01]} 2. d4 {[%emt 0:00:01]} Nf6 {[%emt 0:
00:02]} 3. Nc3 Nbd7 {[%emt 0:00:00]} 4. f4 {[%emt 0:00:01]} e5 {[%emt 0:00:02]}
5. dxe5 {[%emt 0:00:02]} dxe5 {[%emt 0:00:01]} 6. fxe5 {[%emt 0:00:01]} Nxe5 {
[%emt 0:00:01]} 7. Qxd8+ {[%emt 0:00:01]} Kxd8 {[%emt 0:00:01]} 8. Nf3 {
[%emt 0:00:01]} Bd6 {[%emt 0:00:08]} 9. Bc4 {[%emt 0:00:03]} Ke7 {[%emt 0:00:
04]} 10. Bg5 {[%emt 0:00:03]} c6 {[%emt 0:00:02]} 11. O-O-O {[%emt 0:00:03]}
Nxc4 {[%emt 0:00:09]} 12. e5 {[%emt 0:00:13]} Bxe5 {[%emt 0:00:22]} 13. Rhe1 {
[%emt 0:00:25]} Ke6 {[%emt 0:00:28]} 14. Nd4+ {[%emt 0:00:04]} Ke7 {[%emt 0:00:
01]} 15. Nf3 {[%emt 0:00:03]} Be6 {[%emt 0:00:27]} 16. Nxe5 {[%emt 0:00:05]}
Nxe5 {[%emt 0:00:01]} 17. Rxe5 {[%emt 0:00:01]} Rhd8 {[%emt 0:00:11]} 18. Rf1 {
[%emt 0:00:10]} h6 {[%emt 0:00:14]} 19. Bxf6+ {[%emt 0:00:21]} gxf6 {[%emt 0:
00:01]} 20. Rh5 {[%emt 0:00:01]} Rg8 {[%emt 0:00:05]} 21. g3 {[%emt 0:00:01]}
Rg6 {[%emt 0:00:01]} 22. Rf4 {[%emt 0:00:09]} Bg4 {[%emt 0:00:11]} 23. Rh4 {
[%emt 0:00:15]} h5 {[%emt 0:00:01]} 24. h3 {[%emt 0:00:11]} Be6 {[%emt 0:00:01]
} 25. Ne2 {[%emt 0:00:11]} Rg5 {[%emt 0:00:04]} 26. Rf3 {[%emt 0:00:08]} Bd5 {
[%emt 0:00:11]} 27. Re3+ {[%emt 0:00:02]} Kd6 {[%emt 0:00:09]} 28. Nf4 {
[%emt 0:00:02]} Rag8 {[%emt 0:00:11]} 29. Nxh5 {[%emt 0:00:02]} R8g6 {[%emt 0:
00:17]} 30. c4 {[%emt 0:00:11]} Be6 {[%emt 0:00:05]} 31. b4 {[%emt 0:00:05]}
Rh6 {[%emt 0:00:04]} 32. Rd4+ {[%emt 0:00:08]} Ke7 {[%emt 0:00:04]} 33. g4 {
[%emt 0:00:02]} Re5 {[%emt 0:00:05]} 34. Rde4 {[%emt 0:00:22]} Kd6 {[%emt 0:00:
09]} 35. Kd2 {[%emt 0:00:07]} Rxe4 {[%emt 0:00:04]} 36. Rxe4 {[%emt 0:00:02]}
f5 {[%emt 0:00:01]} 37. gxf5 {[%emt 0:00:13]} Bxf5 {[%emt 0:00:02]} 38. c5+ {
[%emt 0:00:15]} Kd5 {[%emt 0:00:03]} 39. Rh4 {[%emt 0:00:02]} Ke5 {[%emt 0:00:
03]} 40. Ke3 {[%emt 0:00:05]} Bg6 {[%emt 0:00:01]} 41. Rd4 {[%emt 0:00:05]}
Rxh5 {[%emt 0:00:02]} 42. Rd7 {[%emt 0:00:01]} Rxh3+ {[%emt 0:00:01]} 43. Kd2 {
[%emt 0:00:01]} Rh2+ {[%emt 0:00:02]} 44. Kc3 {[%emt 0:00:01]} Rxa2 {[%emt 0:
00:05]} 45. Rxb7 {[%emt 0:00:01]} f6 {[%emt 0:00:02]} 46. Rc7 {[%emt 0:00:01]}
Be4 {[%emt 0:00:02]} 47. Re7+ {[%emt 0:00:01]} Kf4 {[%emt 0:00:02]} 48. Kd4 {
[%emt 0:00:01]} Rd2+ {[%emt 0:00:01]} 49. Kc3 {[%emt 0:00:00]} Rd3+ {[%emt 0:
00:02]} 50. Kc4 Ra3 {[%emt 0:00:02]} 51. Rf7 {[%emt 0:00:09]} f5 {[%emt 0:00:
01]} 52. Kd4 {[%emt 0:00:00]} Rd3+ {[%emt 0:00:03]} 53. Kc4 {[%emt 0:00:01]}
Bd5+ {[%emt 0:00:01]} 54. Kxd3 {[%emt 0:00:01]} Bxf7 {[%emt 0:00:01]} 55. Kd4 {
[%emt 0:00:03]} a6 {[%emt 0:00:02]} 56. Kd3 {[%emt 0:00:02]} Bd5 {[%emt 0:00:
01]} 57. Kd4 {[%emt 0:00:01]} Kg3 {[%emt 0:00:01]} 58. Ke5 {[%emt 0:00:00]} 0-1

[Event "FIDE Women World Blitz 2021"]
[Site "Warsaw"]
[Date "2021.12.30"]
[Round "16.21"]
[White "Fernandez, Maria Florencia"]
[Black "Danielian, Elina"]
[Result "0-1"]
[ECO "A60"]
[WhiteElo "2184"]
[BlackElo "2450"]
[Annotator "ChessBase"]
[PlyCount "132"]
[EventDate "2021.12.29"]
[EventType "swiss"]
[EventCountry "POL"]
[Tiebreak "Cut1 Buchholz"]
[SourceTitle "playchess.com"]
[Source "ChessBase"]
[SourceQuality "1"]
[TimeControl "180+2"]

1. d4 {[%emt 0:00:02]} Nf6 {[%emt 0:00:01]} 2. c4 {[%emt 0:00:02]} e6 {[%emt 0:
00:01]} 3. Nf3 {[%emt 0:00:01]} c5 {[%emt 0:00:00]} 4. d5 {[%emt 0:00:01]} exd5
{[%emt 0:00:01]} 5. cxd5 {[%emt 0:00:01]} Bd6 {[%emt 0:00:01]} 6. Nc3 {[%emt 0:
00:01]} Bc7 {[%emt 0:00:01]} 7. e4 {[%emt 0:00:02]} d6 {[%emt 0:00:00]} 8. Bd3
{[%emt 0:00:02]} O-O {[%emt 0:00:02]} 9. O-O {[%emt 0:00:02]} a6 10. a4 {
[%emt 0:00:01]} Nbd7 {[%emt 0:00:02]} 11. h3 {[%emt 0:00:12]} Re8 {[%emt 0:00:
02]} 12. Nd2 {[%emt 0:00:05]} Rb8 {[%emt 0:00:01]} 13. f4 {[%emt 0:00:07]} Nf8
{[%emt 0:00:07]} 14. Qf3 {[%emt 0:00:06]} h5 {[%emt 0:00:41]} 15. Re1 {[%emt 0:
00:33]} Ng6 {[%emt 0:00:06]} 16. Nf1 {[%emt 0:00:12]} Bd7 {[%emt 0:00:31]} 17.
Ng3 {[%emt 0:00:09]} h4 {[%emt 0:00:06]} 18. Nh5 {[%emt 0:00:03]} b5 {[%emt 0:
00:06]} 19. axb5 {[%emt 0:00:08]} axb5 {[%emt 0:00:01]} 20. Nxf6+ Qxf6 {
[%emt 0:00:01]} 21. e5 {[%emt 0:00:29]} dxe5 {[%emt 0:00:09]} 22. Ne4 {[%emt 0:
00:01]} Qb6 {[%emt 0:00:09]} 23. f5 {[%emt 0:00:06]} Nf4 {[%emt 0:00:07]} 24.
Bxf4 {[%emt 0:00:10]} exf4 {[%emt 0:00:02]} 25. Kh1 {[%emt 0:00:16]} Bxf5 {
[%emt 0:00:12]} 26. Ng5 {[%emt 0:00:18]} Qg6 {[%emt 0:00:07]} 27. Bxf5 {
[%emt 0:00:06]} Qxf5 {[%emt 0:00:07]} 28. Ne4 {[%emt 0:00:04]} Be5 {[%emt 0:00:
07]} 29. Rad1 {[%emt 0:00:06]} Rbd8 {[%emt 0:00:15]} 30. Nxc5 {[%emt 0:00:02]}
Bxb2 {[%emt 0:00:03]} 31. Rxe8+ {[%emt 0:00:02]} Rxe8 {[%emt 0:00:01]} 32. Ne4
{[%emt 0:00:07]} Qxe4 {[%emt 0:00:04]} 33. Qb3 {[%emt 0:00:02]} Bf6 {[%emt 0:
00:08]} 34. Qxb5 {[%emt 0:00:05]} f3 {[%emt 0:00:02]} 35. Qf1 {[%emt 0:00:17]}
fxg2+ {[%emt 0:00:03]} 36. Qxg2 {[%emt 0:00:00]} Qxg2+ {[%emt 0:00:03]} 37.
Kxg2 {[%emt 0:00:01]} Be5 {[%emt 0:00:03]} 38. Kf3 {[%emt 0:00:01]} f5 {
[%emt 0:00:03]} 39. Re1 {[%emt 0:00:06]} Kf7 {[%emt 0:00:02]} 40. Rb1 {[%emt 0:
00:02]} Bd6 {[%emt 0:00:04]} 41. Rb6 {[%emt 0:00:04]} Rd8 {[%emt 0:00:03]} 42.
Ra6 {[%emt 0:00:05]} Kf6 {[%emt 0:00:03]} 43. Ra4 {[%emt 0:00:01]} g5 {[%emt 0:
00:01]} 44. Ra7 {[%emt 0:00:03]} Ke5 {[%emt 0:00:04]} 45. Rg7 {[%emt 0:00:03]}
Kxd5 {[%emt 0:00:09]} 46. Rxg5 {[%emt 0:00:00]} Ke6 {[%emt 0:00:02]} 47. Rh5 {
[%emt 0:00:03]} Bg3 {[%emt 0:00:02]} 48. Rh6+ {[%emt 0:00:03]} Ke5 {[%emt 0:00:
01]} 49. Ra6 {[%emt 0:00:00]} Rd3+ {[%emt 0:00:01]} 50. Ke2 {[%emt 0:00:01]}
Rb3 {[%emt 0:00:01]} 51. Ra4 {[%emt 0:00:03]} Rb2+ {[%emt 0:00:03]} 52. Kf3 {
[%emt 0:00:01]} Rf2+ {[%emt 0:00:02]} 53. Ke3 {[%emt 0:00:01]} f4+ {[%emt 0:00:
02]} 54. Kd3 f3 {[%emt 0:00:04]} 55. Ra5+ {[%emt 0:00:03]} Kf6 {[%emt 0:00:03]}
56. Ke4 {[%emt 0:00:01]} Kg6 {[%emt 0:00:05]} 57. Ra6+ {[%emt 0:00:01]} Kg7 {
[%emt 0:00:04]} 58. Ra7+ {[%emt 0:00:01]} Kf6 {[%emt 0:00:01]} 59. Ra6+ {
[%emt 0:00:01]} Ke7 {[%emt 0:00:01]} 60. Ra7+ {[%emt 0:00:03]} Ke6 {[%emt 0:00:
03]} 61. Ra6+ {[%emt 0:00:01]} Bd6 {[%emt 0:00:01]} 62. Ra8 {[%emt 0:00:05]}
Rf1 {[%emt 0:00:03]} 63. Re8+ {[%emt 0:00:08]} Kd7 {[%emt 0:00:02]} 64. Rg8 {
[%emt 0:00:03]} f2 {[%emt 0:00:03]} 65. Ke3 {[%emt 0:00:03]} Bc5+ {[%emt 0:00:
02]} 66. Kf3 {[%emt 0:00:02]} Rg1 {[%emt 0:00:03]} 0-1

[Event "FIDE Women World Blitz 2021"]
[Site "Warsaw"]
[Date "2021.12.30"]
[Round "16.22"]
[White "Majdan, Joanna"]
[Black "Dworakowska, Joanna"]
[Result "1-0"]
[ECO "B26"]
[WhiteElo "2325"]
[BlackElo "2228"]
[Annotator "NA"]
[PlyCount "87"]
[EventDate "2021.12.29"]
[EventType "swiss"]
[EventCountry "POL"]
[Tiebreak "Cut1 Buchholz"]
[SourceTitle "playchess.com"]
[Source "ChessBase"]
[SourceQuality "1"]
[TimeControl "180+2"]

1. e4 {[%emt 0:00:01]} c5 {[%emt 0:00:02]} 2. Nc3 {[%emt 0:00:01]} d6 {[%emt 0:
00:01]} 3. g3 {[%emt 0:00:01]} g6 {[%emt 0:00:01]} 4. Bg2 {[%emt 0:00:01]} Bg7
{[%emt 0:00:01]} 5. Nge2 {[%emt 0:00:02]} Nc6 {[%emt 0:00:04]} 6. d3 {[%emt 0:
00:01]} Nf6 {[%emt 0:00:10]} 7. h3 {[%emt 0:00:05]} Rb8 {[%emt 0:00:02]} 8. Be3
{[%emt 0:00:03]} O-O {[%emt 0:00:06]} 9. d4 {[%emt 0:00:08]} cxd4 {[%emt 0:00:
02]} 10. Nxd4 {[%emt 0:00:01]} Ne5 {[%emt 0:00:30]} 11. Qe2 {[%emt 0:00:04]} a6
{[%emt 0:00:39]} 12. f4 {[%emt 0:00:02]} Nc6 {[%emt 0:00:01]} 13. Nb3 {[%emt 0:
00:05]} Bd7 {[%emt 0:00:21]} 14. O-O {[%emt 0:00:03]} b5 {[%emt 0:00:02]} 15.
a4 {[%emt 0:00:05]} b4 {[%emt 0:00:02]} 16. Nd5 {[%emt 0:00:01]} a5 {[%emt 0:
00:16]} 17. f5 {[%emt 0:00:13]} Nxd5 {[%emt 0:00:08]} 18. exd5 {[%emt 0:00:02]}
Ne5 {[%emt 0:00:01]} 19. Nd4 {[%emt 0:00:06]} Rc8 {[%emt 0:00:09]} 20. b3 {
[%emt 0:00:03]} Rc3 {[%emt 0:00:08]} 21. Kh2 {[%emt 0:00:08]} Qc8 {[%emt 0:00:
17]} 22. g4 {[%emt 0:00:28]} Kh8 {[%emt 0:00:10]} 23. Rad1 {[%emt 0:00:04]}
gxf5 {[%emt 0:00:03]} 24. gxf5 {[%emt 0:00:01]} Bf6 {[%emt 0:00:01]} 25. Be4 {
[%emt 0:00:06]} Rg8 {[%emt 0:00:11]} 26. Rg1 {[%emt 0:00:01]} Rxg1 {[%emt 0:00:
04]} 27. Rxg1 {[%emt 0:00:01]} Qf8 {[%emt 0:00:05]} 28. Bd2 {[%emt 0:00:10]}
Rc8 {[%emt 0:00:02]} 29. Qh5 {[%emt 0:00:08]} Re8 {[%emt 0:00:05]} 30. Bh6 {
[%emt 0:00:01]} Qg8 {[%emt 0:00:02]} 31. Rxg8+ {[%emt 0:00:02]} Rxg8 {[%emt 0:
00:01]} 32. Nf3 {[%emt 0:00:10]} Nxf3+ {[%emt 0:00:03]} 33. Qxf3 {[%emt 0:00:
02]} Be5+ {[%emt 0:00:02]} 34. Bf4 {[%emt 0:00:01]} Bf6 {[%emt 0:00:01]} 35.
Qd3 {[%emt 0:00:03]} Bc8 {[%emt 0:00:04]} 36. Qb5 {[%emt 0:00:01]} h5 {[%emt 0:
00:04]} 37. Qxa5 {[%emt 0:00:01]} h4 {[%emt 0:00:03]} 38. Qc7 {[%emt 0:00:02]}
Ba6 {[%emt 0:00:02]} 39. Bd3 {[%emt 0:00:01]} Bc8 {[%emt 0:00:02]} 40. a5 {
[%emt 0:00:01]} Bd4 {[%emt 0:00:03]} 41. Qxe7 {[%emt 0:00:06]} Bg1+ {[%emt 0:
00:10]} 42. Kh1 {[%emt 0:00:01]} Bd4 {[%emt 0:00:01]} 43. Qxh4+ {[%emt 0:00:02]
} Kg7 {[%emt 0:00:00]} 44. Qh6# {[%emt 0:00:06]} 1-0